lending/lending_fUSD_20240928
["ID","MTS","AMOUNT","RATE_DAILY","PERIOD"]
[339380037,1727521837996,-331.86294075,0.00012,2]
[339380038,1727521838006,-499.99,0.00012,2]
[339380039,1727521838015,-5.99565412,0.00012,4]
[339380041,1727521838140,-1494.00434588,0.00012,4]
[339380042,1727521838150,-150.0,0.00012057,2]
[339380043,1727521838159,-1305.88274386,0.000121,4]
[339380044,1727521838177,-894.11725614,0.000121,4]
[339380045,1727521838191,-150.0,0.00012104,2]
[339380046,1727521838201,-150.0,0.00012116,2]
[339380047,1727521838211,-150.0,0.00012174,2]
[339380048,1727521838221,-1256.22595138,0.00012198,2]
[339380049,1727521838231,-349.54388222,0.000122,4]
[339380050,1727521838244,-2293.39518166,0.000122,4]
[339380051,1727521838255,-357.06093612,0.000122,4]
[339380052,1727521838265,-150.0,0.00012233,2]
[339380053,1727521838274,-150.0,0.00012233,2]
[339380054,1727521838283,-150.0,0.00012233,2]
[339380055,1727521838292,-150.0,0.00012291,2]
[339380056,1727521838302,-1512.27233768,0.000123,4]
[339380057,1727521838325,-2287.72766232,0.000123,4]
[339380058,1727521838334,-150.0,0.0001235,2]
[339380059,1727521838343,-150.0,0.00012362,2]
[339380060,1727521838353,-674.59950297,0.000124,4]
[339380061,1727521838365,-25.40049703,0.000124,4]
[339380062,1727521838374,-432.190544,0.00012406,2]
[339380063,1727521838384,-150.0,0.00012408,2]
[339380064,1727521838393,-150.0,0.00012467,2]
[339380065,1727521838403,-150.0,0.0001249,2]
[339380066,1727521838412,-700.0,0.000125,4]
[339380067,1727521838422,-150.0,0.00012526,2]
[339380068,1727521838431,-150.0,0.00012555,2]
[339380069,1727521838441,-432.190544,0.00012561,2]
[339380070,1727521838450,-150.0,0.00012584,2]
[339380071,1727521838459,-410.21841497,0.0001259,2]
[339380072,1727521838477,-465.8368794,0.0001259,2]
[339380075,1727521839923,-385.88399247,0.0001259,2]
[339380077,1727521839977,-537.28595121,0.0001259,2]
[339380078,1727521839987,-64.12135973,0.000126,4]
[339380079,1727521839999,-635.87864027,0.000126,4]
[339380081,1727521840009,-150.0,0.00012619,2]
[339380083,1727521840018,-420.0,0.0001262,2]
[339380084,1727521840028,-150.0,0.00012643,2]
[339380085,1727521840037,-700.0,0.000127,4]
[339380086,1727521840046,-150.0,0.00012701,2]
[339380087,1727521840056,-154.049,0.0001271,2]
[339380088,1727521840065,-432.190544,0.00012716,2]
[339380089,1727521840074,-150.0,0.00012748,2]
[339380090,1727521840084,-150.0,0.0001276,2]
[339380091,1727521840093,-684.78181573,0.0001277,2]
[339380092,1727521840105,-900.4367016,0.0001277,2]
[339380093,1727521840185,-462.73266697,0.0001277,2]
[339380094,1727521840196,-2952.75259139,0.0001277,2]
[339380095,1727521840209,-1207.804,0.0001277,2]
[339380096,1727521840237,-671.46171219,0.0001277,2]
[339380104,1727521842967,-515.16797209,0.0001277,2]
[339380105,1727521842979,-7742.47314003,0.0001277,2]
[339380106,1727521842989,-327.50349023,0.0001278,2]
[339380107,1727521843000,-905.3344,0.000128,2]
[339380108,1727521843011,-12253.1699,0.000128,2]
[339380109,1727521843021,-7318.12372394,0.000128,2]
[339380110,1727521843033,-2575.00527606,0.000128,2]
[339380111,1727521843042,-1000.0,0.000128,2]
[339380112,1727521843051,-172.17090236,0.000128,2]
[339380113,1727521843061,-1597.84807978,0.000128,2]
[339380114,1727521843070,-4090.8746,0.000128,2]
[339380115,1727521843079,-1200.0,0.000128,4]
[339380116,1727521843088,-157.09,0.000128,2]
[339380117,1727521843098,-226.66,0.000128,2]
[339380118,1727521843108,-896.20974698,0.000128,2]
[339380119,1727521843118,-1597.8480797,0.00012811,2]
[339380120,1727521843129,-150.0,0.00012818,2]
[339380121,1727521843139,-1597.8480797,0.00012822,2]
[339380122,1727521843149,-1597.8480797,0.00012833,2]
[339380123,1727521843159,-1597.8480797,0.00012844,2]
[339380124,1727521843168,-206.059,0.0001285,2]
[339380125,1727521843178,-166.398,0.0001285,2]
[339380126,1727521843187,-384.0,0.0001285,2]
[339380127,1727521843196,-1597.8480797,0.00012856,2]
[339380128,1727521843205,-185.33,0.00012862,2]
[339380129,1727521843214,-1597.8480797,0.00012867,2]
[339380130,1727521843223,-432.190544,0.00012871,2]
[339380131,1727521843234,-500.0,0.00012873,2]
[339380132,1727521843246,-150.0,0.00012877,2]
[339380133,1727521843257,-150.0,0.00012877,2]
[339380134,1727521843267,-277.38225712,0.00012877,2]
[339380135,1727521843276,-1597.8480797,0.00012878,2]
[339380136,1727521843286,-1597.8480797,0.00012889,2]
[339380137,1727521843295,-3318.28072001,0.00012889,2]
[339380138,1727521843304,-238.37841767,0.0001289,2]
[339380139,1727521843314,-238.37841767,0.0001289,2]
[339380140,1727521843323,-238.37841767,0.0001289,2]
[339380141,1727521843332,-152.81,0.0001289,2]
[339380142,1727521843342,-286.249,0.00012899,2]
[339380143,1727521843350,-168.721,0.00012899,2]
[339380144,1727521843360,-297.36950172,0.00012899,2]
[339380145,1727521843369,-500.0,0.00012899,2]
[339380146,1727521843378,-1000.4426,0.00012899,2]
[339380147,1727521843387,-726.06873016,0.000129,2]
[339380148,1727521843401,-5600.45753548,0.000129,2]
[339380149,1727521843411,-5722.24100985,0.000129,2]
[339380150,1727521843422,-301.6,0.000129,2]
[339380151,1727521843433,-623.9553211,0.000129,2]
[339380152,1727521843444,-264.06999999,0.000129,2]
[339380153,1727521843455,-679.9439967,0.000129,2]
[339380154,1727521843466,-347.62624743,0.000129,2]
[339380157,1727521845936,-9168.14602494,0.000129,2]
[339380158,1727521846187,-363.55455,0.000129,2]
[339380159,1727521846336,-12913.901,0.000129,2]
[339381642,1727522089315,503.0,0.00022,120]
[339381643,1727522120506,242.21,0.0001,2]
[339381648,1727522286217,793.57672261,0.00021,60]
[339381649,1727522323440,780.43490176,0.00021,60]
[339381652,1727522711396,239.8,9.614e-05,2]
[339381696,1727523032161,-544.56018337,0.00011221,2]
[339381697,1727523032171,-3942.01,0.00011312,2]
[339381698,1727523032180,-159.57,0.00011321,2]
[339381699,1727523032190,-250.0,0.00011339,2]
[339381700,1727523032202,-200.0,0.00011347,2]
[339381701,1727523032211,-245.07,0.00011356,2]
[339381702,1727523032221,-159.54,0.00011363,2]
[339381703,1727523032231,-300.0,0.00011458,2]
[339381704,1727523032240,-24755.88,0.00011459,2]
[339381705,1727523032251,-150.0,0.00011589,2]
[339381706,1727523032260,-150.0,0.00011589,2]
[339381707,1727523032269,-150.0,0.00011589,2]
[339381708,1727523032279,-193.56768465,0.00011589,2]
[339381709,1727523032288,-150.0,0.00011633,2]
[339381710,1727523032297,-150.0,0.00011648,2]
[339381711,1727523032306,-165.63091281,0.00011661,2]
[339381712,1727523032316,-200.0,0.00011672,2]
[339381713,1727523032325,-250.0,0.00011674,2]
[339381714,1727523032334,-150.0,0.00011678,2]
[339381715,1727523032343,-230.4,0.0001169,2]
[339381716,1727523032353,-150.0,0.00011705,2]
[339381717,1727523032362,-150.0,0.00011706,2]
[339381718,1727523032371,-499.99,0.00011706,2]
[339381719,1727523032380,-1703.78120784,0.00011706,2]
[339381720,1727523032392,-2417.64878082,0.00011706,2]
[339381721,1727523032407,-612.10001134,0.00011706,2]
[339381722,1727523032416,-386.74,0.00011706,2]
[339381723,1727523032425,-2065.13,0.00011706,2]
[339381724,1727523032435,-150.0,0.00011722,2]
[339381725,1727523032445,-150.0,0.0001175,2]
[339381726,1727523032455,-2751.0,0.0001176,2]
[339381727,1727523032464,-150.0,0.00011765,2]
[339381728,1727523032473,-150.0,0.00011767,2]
[339381729,1727523032484,-182.71,0.0001181,2]
[339381730,1727523032494,-150.0,0.00011811,2]
[339381731,1727523032503,-150.0,0.00011823,2]
[339381732,1727523032512,-500.0,0.0001185,2]
[339381733,1727523032521,-150.0,0.00011855,2]
[339381735,1727523032530,-239.8,0.00011878,2]
[339381737,1727523032539,-150.0,0.00011882,2]
[339381739,1727523032549,-150.0,0.000119,2]
[339381741,1727523032558,-150.0,0.00011911,2]
[339381743,1727523032568,-150.0,0.0001194,2]
[339381744,1727523032577,-150.0,0.00011944,2]
[339381746,1727523032587,-769.6,0.00011981,2]
[339381749,1727523032596,-150.0,0.00011989,2]
[339381752,1727523032606,-150.0,0.00011999,2]
[339381755,1727523032616,-150.0,0.00012033,2]
[339381756,1727523032625,-150.0,0.00012057,2]
[339381757,1727523032634,-169.38,0.00012064,2]
[339381758,1727523032644,-150.0,0.00012072,2]
[339381759,1727523032654,-150.0,0.00012077,2]
[339381760,1727523032663,-166.89998866,0.00012108,2]
[339381764,1727523038137,-477.50902857,0.00012108,2]
[339381777,1727523040391,-231.73098277,0.00012108,2]
[339381778,1727523040401,-150.0,0.00012116,2]
[339381779,1727523040415,-150.0,0.00012122,2]
[339381780,1727523040424,-150.0,0.00012166,2]
[339381781,1727523040433,-150.0,0.00012174,2]
[339381782,1727523040442,-1398.24755532,0.00012198,2]
[339381783,1727523040453,-150.0,0.00012211,2]
[339381784,1727523040462,-150.0,0.00012233,2]
[339381785,1727523040471,-150.0,0.00012233,2]
[339381786,1727523040481,-150.0,0.00012255,2]
[339381787,1727523040490,-150.0,0.00012291,2]
[339381788,1727523040499,-150.0,0.00012299,2]
[339381789,1727523040508,-150.0,0.00012344,2]
[339381790,1727523040518,-150.0,0.0001235,2]
[339381791,1727523040527,-150.0,0.00012388,2]
[339381792,1727523040536,-150.0,0.00012394,2]
[339381793,1727523040544,-151.663263,0.00012406,2]
[339381794,1727523040553,-161.507085,0.00012406,2]
[339381795,1727523040564,-150.0,0.00012408,2]
[339381796,1727523040573,-150.0,0.00012433,2]
[339381797,1727523040583,-169.22,0.00012445,2]
[339381798,1727523040592,-150.0,0.00012467,2]
[339381799,1727523040601,-150.0,0.00012477,2]
[339381800,1727523040611,-150.0,0.00012521,2]
[339381801,1727523040620,-150.0,0.00012526,2]
[339381802,1727523040629,-150.0,0.00012555,2]
[339381804,1727523040638,-150.0,0.00012566,2]
[339381805,1727523040646,-150.0,0.00012584,2]
[339381806,1727523040655,-420.0,0.00012585,2]
[339381807,1727523040664,-150.0,0.0001261,2]
[339381808,1727523040672,-154.05,0.00012611,2]
[339381809,1727523040681,-151.663263,0.00012613,2]
[339381810,1727523040690,-150.0,0.00012643,2]
[339381811,1727523040700,-327.50349023,0.00012652,2]
[339381812,1727523040708,-150.0,0.00012655,2]
[339381813,1727523040717,-150.0,0.00012699,2]
[339381814,1727523040726,-150.0,0.00012701,2]
[339381815,1727523040735,-150.0,0.00012716,2]
[339381816,1727523040744,-150.0,0.00012744,2]
[339381817,1727523040753,-150.0,0.0001276,2]
[339381818,1727523040762,-245.07,0.00012775,2]
[339381819,1727523040770,-150.0,0.00012788,2]
[339381820,1727523040780,-1500.0,0.00012788,2]
[339381821,1727523040788,-848.1,0.000128,2]
[339381822,1727523040798,-493.1894,0.000128,2]
[339381823,1727523040806,-300.0,0.000128,2]
[339381824,1727523040816,-3303.4273,0.000128,2]
[339381825,1727523040825,-1414.21,0.000128,2]
[339381826,1727523040834,-229.56,0.000128,2]
[339381827,1727523040844,-1323.0,0.000128,2]
[339381828,1727523040854,-150.0,0.00012818,2]
[339381829,1727523040863,-151.663263,0.00012819,2]
[339381830,1727523040872,-150.0,0.00012832,2]
[339381831,1727523040881,-201.495,0.00012844,2]
[339381832,1727523040890,-203.01757832,0.0001285,2]
[339381833,1727523040900,-180.0,0.00012861,2]
[339381834,1727523040910,-150.0,0.00012877,2]
[339381835,1727523040920,-150.0,0.00012877,2]
[339381836,1727523040929,-150.0,0.00012877,2]
[339381837,1727523040939,-1500.0,0.00012879,2]
[339381838,1727523040949,-500.0,0.00012899,2]
[339381839,1727523040960,-500.0,0.00012899,2]
[339381840,1727523040969,-500.0,0.00012899,2]
[339381841,1727523040978,-533.35981103,0.00012899,2]
[339381842,1727523040988,-1006.1172,0.00012899,2]
[339381843,1727523040997,-501.24362106,0.00012899,2]
[339381844,1727523041006,-80859.33090287,0.00012899,2]
[339381845,1727523041016,-500.0,0.00012899,2]
[339381846,1727523041025,-262.43421906,0.00012899,2]
[339381847,1727523041034,-3266.71519376,0.000129,2]
[339381848,1727523041043,-111054.02912719,0.000129,2]
[339381849,1727523041053,-207181.47529083,0.000129,2]
[339381850,1727523041077,-2552.79540001,0.000129,2]
[339381851,1727523041088,-658.96,0.000129,2]
[339381856,1727523043290,-812.45023088,0.000129,2]
[339381857,1727523043301,-1956.38547038,0.000129,2]
[339381894,1727523046137,-1276.48,0.000129,2]
[339381895,1727523046362,-29386.70535779,0.000129,2]
[339381898,1727523157692,207.56,0.00010959,2]
[339381899,1727523237503,1001.53700667,0.00022,120]
[339381900,1727523299248,237.08,9.895e-05,2]
[339381902,1727523473109,1050.0,0.00011,2]
[339381908,1727523844784,236.21,9.532e-05,2]
[339381939,1727524137760,846.1,0.00022,120]
[339381942,1727524232216,-2533.94,0.00011124,2]
[339381943,1727524232227,-250.0,0.00011128,2]
[339381944,1727524232236,-148.76,0.00011133,2]
[339381946,1727524232559,-830.76,0.00011133,2]
[339381947,1727524232570,-159.57,0.00011133,2]
[339381948,1727524232580,-5316.43425609,0.00011136,2]
[339381949,1727524232591,-14239.84395997,0.00011136,2]
[339381950,1727524232602,-2083.24178394,0.00011136,2]
[339381951,1727524232612,-5218.68,0.00011137,2]
[339381952,1727524232621,-193.61,0.00011137,2]
[339381953,1727524232631,-154.0,0.00011138,2]
[339381954,1727524232641,-250.0,0.00011141,2]
[339381955,1727524232652,-182.71,0.00011229,2]
[339381956,1727524232663,-448.66,0.00011353,2]
[339381957,1727524232672,-250.0,0.00011412,2]
[339381958,1727524232682,-3125.51,0.00011465,2]
[339381959,1727524232692,-3569.99,0.00011471,2]
[339381960,1727524232701,-150.0,0.0001149,2]
[339381961,1727524232711,-2751.0,0.00011507,2]
[339381962,1727524232720,-4468.16,0.00011511,2]
[339381963,1727524232729,-150.0,0.00011535,2]
[339381964,1727524232739,-499.99,0.00011536,2]
[339381965,1727524232748,-150.0,0.00011589,2]
[339381966,1727524232757,-150.0,0.00011589,2]
[339381967,1727524232767,-150.0,0.00011589,2]
[339381968,1727524232776,-150.0,0.00011589,2]
[339381969,1727524232786,-150.0,0.00011589,2]
[339381970,1727524232795,-150.09585457,0.00011589,2]
[339381971,1727524232804,-150.0,0.00011589,2]
[339381972,1727524232815,-150.09979569,0.00011589,2]
[339381973,1727524232824,-150.09304066,0.00011589,2]
[339381974,1727524232833,-150.0,0.00011623,2]
[339381975,1727524232842,-150.0,0.00011632,2]
[339381976,1727524232851,-150.0,0.00011657,2]
[339381977,1727524232861,-150.0,0.00011675,2]
[339381978,1727524232870,-150.0,0.00011675,2]
[339381979,1727524232881,-150.0,0.00011691,2]
[339381980,1727524232890,-150.0,0.00011706,2]
[339381981,1727524232900,-150.0,0.00011718,2]
[339381982,1727524232910,-183.22,0.00011725,2]
[339381983,1727524232919,-150.0,0.00011725,2]
[339381984,1727524232929,-150.0,0.00011758,2]
[339381985,1727524232940,-150.0,0.00011761,2]
[339381986,1727524232948,-150.0,0.00011761,2]
[339381987,1727524232958,-150.0,0.00011792,2]
[339381988,1727524232967,-236.21,0.00011795,2]
[339381989,1727524232976,-150.0,0.00011804,2]
[339381990,1727524232986,-150.0,0.00011823,2]
[339381991,1727524232995,-150.0,0.00011826,2]
[339381992,1727524233005,-150.0,0.00011847,2]
[339381993,1727524233014,-150.0,0.00011847,2]
[339381994,1727524233023,-150.0,0.0001186,2]
[339381995,1727524233032,-150.0,0.00011889,2]
[339381996,1727524233042,-150.0,0.00011894,2]
[339381997,1727524233052,-1000.0,0.00011895,2]
[339381998,1727524233061,-150.0,0.00011928,2]
[339381999,1727524233071,-150.0,0.00011932,2]
[339382000,1727524233080,-150.0,0.00011932,2]
[339382001,1727524233089,-150.0,0.0001194,2]
[339382002,1727524233098,-150.0,0.00011962,2]
[339382003,1727524233108,-150.0,0.00011975,2]
[339382004,1727524233117,-150.0,0.00011996,2]
[339382005,1727524233127,-150.0,0.00012018,2]
[339382006,1727524233136,-150.0,0.00012018,2]
[339382007,1727524233146,-150.0,0.0001203,2]
[339382008,1727524233155,-150.0,0.00012057,2]
[339382009,1727524233165,-150.0,0.00012061,2]
[339382010,1727524233174,-150.0,0.00012063,2]
[339382011,1727524233184,-170.52,0.00012086,2]
[339382012,1727524233193,-150.0,0.00012097,2]
[339382013,1727524233202,-150.0,0.00012104,2]
[339382014,1727524233211,-150.0,0.00012104,2]
[339382015,1727524233221,-150.0,0.00012131,2]
[339382016,1727524233231,-150.0,0.00012147,2]
[339382017,1727524233240,-150.0,0.00012165,2]
[339382018,1727524233250,-150.0,0.00012174,2]
[339382019,1727524233259,-150.0,0.0001219,2]
[339382020,1727524233269,-150.0,0.0001219,2]
[339382021,1727524233278,-150.0,0.00012199,2]
[339382022,1727524233287,-150.0,0.00012233,2]
[339382023,1727524233296,-150.0,0.00012233,2]
[339382024,1727524233306,-150.0,0.00012267,2]
[339382025,1727524233316,-150.0,0.00012276,2]
[339382026,1727524233325,-150.0,0.00012276,2]
[339382027,1727524233335,-331.07,0.00012278,2]
[339382028,1727524233344,-859.98,0.00012278,2]
[339382029,1727524233356,-301.0,0.00012278,2]
[339382030,1727524233366,-154.68,0.00012278,2]
[339382031,1727524233375,-150.0,0.00012291,2]
[339382032,1727524233385,-150.0,0.00012301,2]
[339382033,1727524233394,-150.0,0.00012319,2]
[339382034,1727524233404,-641.45,0.00012329,2]
[339382035,1727524233413,-150.0,0.00012335,2]
[339382036,1727524233423,-150.0,0.00012362,2]
[339382037,1727524233432,-150.0,0.00012362,2]
[339382038,1727524233441,-150.0,0.00012368,2]
[339382039,1727524233451,-150.0,0.00012402,2]
[339382040,1727524233461,-150.0,0.00012405,2]
[339382041,1727524233470,-161.507087,0.00012406,2]
[339382042,1727524233480,-151.663262,0.00012406,2]
[339382043,1727524233490,-174.074222,0.00012406,2]
[339382044,1727524233499,-151.663262,0.00012406,2]
[339382045,1727524233508,-520.777537,0.00012406,2]
[339382046,1727524233518,-150.0,0.00012408,2]
[339382047,1727524233528,-150.0,0.00012436,2]
[339382048,1727524233537,-150.0,0.00012447,2]
[339382049,1727524233547,-150.0,0.00012447,2]
[339382050,1727524233557,-150.0,0.0001247,2]
[339382051,1727524233567,-150.0,0.0001249,2]
[339382052,1727524233578,-150.0,0.00012504,2]
[339382053,1727524233588,-150.0,0.00012526,2]
[339382054,1727524233597,-150.0,0.00012533,2]
[339382055,1727524233608,-150.0,0.00012533,2]
[339382056,1727524233618,-150.0,0.00012538,2]
[339382057,1727524233627,-154.05,0.00012556,2]
[339382058,1727524233637,-520.777537,0.00012561,2]
[339382059,1727524233646,-12.7370819,0.00012572,2]
[339382061,1727524238282,-137.2629181,0.00012572,2]
[339382062,1727524238292,-150.0,0.00012576,2]
[339382063,1727524238302,-150.0,0.00012606,2]
[339382064,1727524238311,-62.77509474,0.00012619,2]
[339382065,1727524238561,-87.22490526,0.00012619,2]
[339382066,1727524238572,-150.0,0.00012619,2]
[339382067,1727524238582,-2265.68,0.00012624,2]
[339382068,1727524238592,-150.0,0.0001264,2]
[339382069,1727524238602,-150.0,0.00012643,2]
[339382070,1727524238612,-180.0,0.00012644,2]
[339382071,1727524238622,-150.0,0.00012662,2]
[339382072,1727524238631,-150.0,0.00012673,2]
[339382073,1727524238641,-150.0,0.00012705,2]
[339382074,1727524238651,-150.0,0.00012705,2]
[339382075,1727524238661,-150.0,0.00012707,2]
[339382076,1727524238671,-520.777537,0.00012716,2]
[339382077,1727524238680,-150.0,0.00012741,2]
[339382078,1727524238690,-150.0,0.00012748,2]
[339382079,1727524238700,-150.0,0.0001276,2]
[339382080,1727524238709,-150.0,0.00012775,2]
[339382081,1727524238718,-150.0,0.00012791,2]
[339382082,1727524238729,-150.0,0.00012791,2]
[339382083,1727524238738,-3215.2012,0.000128,2]
[339382084,1727524238747,-51074.41645774,0.000128,2]
[339382086,1727524238759,-3166.77764226,0.000128,2]
[339382087,1727524238769,-664.76301302,0.000128,2]
[339382088,1727524238778,-183.65,0.000128,2]
[339382089,1727524238787,-150.0,0.00012809,2]
[339382090,1727524238797,-161.196,0.00012811,2]
[339382091,1727524238806,-664.76301293,0.00012811,2]
[339382092,1727524238815,-664.76301293,0.00012822,2]
[339382093,1727524238826,-664.76301293,0.00012833,2]
[339382094,1727524238835,-150.0,0.00012834,2]
[339382095,1727524238846,-150.0,0.00012843,2]
[339382096,1727524238856,-664.76301293,0.00012844,2]
[339382097,1727524238865,-664.76301293,0.00012856,2]
[339382098,1727524238874,-664.76301293,0.00012867,2]
[339382099,1727524238884,-520.777537,0.00012871,2]
[339382100,1727524238893,-150.0,0.00012877,2]
[339382101,1727524238902,-150.0,0.00012877,2]
[339382102,1727524238911,-150.0,0.00012877,2]
[339382103,1727524238920,-150.0,0.00012877,2]
[339382104,1727524238929,-664.76301293,0.00012878,2]
[339382105,1727524238938,-664.76301293,0.00012889,2]
[339382106,1727524238947,-6279.8327219,0.00012893,2]
[339382107,1727524238957,-22514.0879526,0.00012893,2]
[339382108,1727524238967,-969.394,0.00012899,2]
[339382109,1727524238976,-377.33905651,0.00012899,2]
[339382110,1727524238985,-500.0,0.00012899,2]
[339382111,1727524238995,-2613.37215501,0.000129,2]
[339382112,1727524239004,-7180.70581826,0.000129,2]
[339382113,1727524239015,-328.53229629,0.000129,2]
[339382114,1727524239027,-2123.25527919,0.000129,2]
[339382115,1727524239039,-1991.64425805,0.000129,2]
[339382116,1727524239050,-322.825348,0.000129,2]
[339382117,1727524239061,-530.4,0.000129,2]
[339382118,1727524240233,-2173.91092252,0.000129,2]
[339382119,1727524240245,-3884.44144592,0.000129,2]
[339382120,1727524240288,-395.48039178,0.000129,2]
[339382121,1727524240344,-547.52749393,0.000129,2]
[339382122,1727524240355,-728.97870502,0.000129,2]
[339382123,1727524240399,-730.07124766,0.000129,2]
[339382124,1727524240456,-332.54659203,0.000129,2]
[339382125,1727524240467,-1247.19195163,0.000129,2]
[339382126,1727524240509,-2461.64286888,0.000129,2]
[339382127,1727524240520,-616.38517119,0.000129,2]
[339382135,1727524243294,-30211.1203429,0.000129,2]
[339382136,1727524243304,-98930.26645267,0.000129,2]
[339382137,1727524243400,-315.0,0.000129,2]
[339382138,1727524243558,-137614.11540609,0.000129,2]
[339382140,1727524246213,-9458.0,0.000129,2]
[339382141,1727524246268,-64575.00000001,0.000129,2]
[339382164,1727524247313,161.96,0.00010959,2]
[339382169,1727524391628,223.58,0.00010103,2]
[339382170,1727524393752,500.0,0.00021999,120]
[339382171,1727524482621,821.8898,0.00022,120]
[339382172,1727524796612,154.26,0.00010959,2]
[339382174,1727524950328,232.17,9.649e-05,2]
[339382194,1727525275607,1050.0,0.00011,2]
[339382195,1727525338760,231.28,0.00010959,2]
[339382216,1727525431476,-2870.7902,0.00011218,2]
[339382217,1727525431486,-171.91718399,0.00011219,2]
[339382218,1727525431496,-250.0,0.00011282,2]
[339382219,1727525431505,-1500.0,0.00011299,2]
[339382220,1727525431514,-214.28,0.00011318,2]
[339382221,1727525431524,-1274.63,0.00011318,2]
[339382222,1727525431533,-250.0,0.00011319,2]
[339382223,1727525431542,-200.0,0.00011326,2]
[339382224,1727525431552,-184.0,0.00011336,2]
[339382225,1727525431561,-300.0,0.00011336,2]
[339382226,1727525431570,-851.37,0.00011337,2]
[339382227,1727525431579,-12839.5135882,0.00011337,2]
[339382228,1727525431591,-8593.4064118,0.00011337,2]
[339382229,1727525431600,-250.0,0.00011337,2]
[339382230,1727525431609,-183.22,0.00011338,2]
[339382231,1727525431618,-1054.88,0.0001134,2]
[339382232,1727525431628,-1000.0,0.00011353,2]
[339382233,1727525431637,-150.0,0.00011358,2]
[339382234,1727525431646,-172.97,0.00011359,2]
[339382235,1727525431656,-4156.65,0.00011359,2]
[339382236,1727525431665,-150.0,0.00011394,2]
[339382237,1727525431674,-736.32,0.00011422,2]
[339382238,1727525431683,-502.15489897,0.000115,2]
[339382239,1727525431693,-150.0,0.00011504,2]
[339382240,1727525431703,-299.99,0.00011504,2]
[339382241,1727525431712,-2751.0,0.00011507,2]
[339382242,1727525431721,-150.0,0.00011589,2]
[339382243,1727525431730,-150.0,0.00011589,2]
[339382244,1727525431739,-150.0,0.00011589,2]
[339382245,1727525431749,-150.0,0.00011589,2]
[339382246,1727525431759,-228.45679633,0.00011589,2]
[339382247,1727525431768,-150.0,0.00011589,2]
[339382248,1727525431777,-169.23798728,0.00011589,2]
[339382249,1727525431786,-802.28,0.00011596,2]
[339382250,1727525431795,-787.5,0.00011609,2]
[339382251,1727525431804,-150.0,0.0001167,2]
[339382252,1727525431813,-154.0,0.00011681,2]
[339382253,1727525431822,-150.0,0.00011732,2]
[339382254,1727525431831,-150.0,0.0001175,2]
[339382255,1727525431841,-150.0,0.0001183,2]
[339382256,1727525431851,-150.0,0.00011875,2]
[339382258,1727525431860,-181.75,0.00011881,2]
[339382260,1727525431869,-215.81,0.00011894,2]
[339382261,1727525431878,-150.0,0.00011911,2]
[339382263,1727525431887,-232.17,0.00011913,2]
[339382265,1727525431896,-278.71,0.0001194,2]
[339382267,1727525431905,-174.82,0.00011954,2]
[339382268,1727525431914,-150.0,0.00011991,2]
[339382269,1727525431923,-150.0,0.00012018,2]
[339382270,1727525431932,-150.0,0.00012018,2]
[339382271,1727525431941,-1507.44,0.00012055,2]
[339382272,1727525431951,-4083.92,0.00012055,2]